fUSD/lending_fUSD_20260512
["ID","MTS","AMOUNT","RATE_DAILY","PERIOD"]
[422082635,1778557840000,-1136.281255,0.00026384,2]
[422082636,1778557840000,-1136.281255,0.00026384,2]
[422082633,1778557840000,-347.517931,0.00026384,2]
[422082626,1778557840000,-151.0,0.00026384,2]
[422082627,1778557840000,-151.0,0.00026384,2]
[422082632,1778557840000,-347.517931,0.00026384,2]
[422082628,1778557840000,-229.754449,0.00026384,2]
[422082631,1778557840000,-347.517931,0.00026384,2]
[422082651,1778557840000,-152.0,0.00026419,7]
[422082630,1778557840000,-347.517931,0.00026384,2]
[422082639,1778557840000,-474.041222,0.00026384,2]
[422082638,1778557840000,-1136.281255,0.00026384,2]
[422082643,1778557840000,-474.041222,0.00026384,2]
[422082642,1778557840000,-474.041222,0.00026384,2]
[422082641,1778557840000,-153.1165149,0.00026384,2]
[422082645,1778557840000,-151.0,0.00026384,2]
[422082644,1778557840000,-151.0,0.00026384,2]
[422082646,1778557840000,-7149.97,0.00026388,2]
[422082647,1778557840000,-152.0,0.0002639,7]
[422082655,1778557840000,-156.35,0.00026441,7]
[422082649,1778557840000,-4766.64,0.00026402,7]
[422082652,1778557840000,-4766.64,0.00026431,2]
[422082629,1778557840000,-151.0,0.00026384,2]
[422082681,1778557840000,-797.9,0.00026875,2]
[422082693,1778557840000,-7287.5,0.00027397,10]
[422082688,1778557840000,-7149.97,0.00027397,7]
[422082713,1778557840000,-1058.25,0.000294,2]
[422082712,1778557840000,-797.9,0.00029318,2]
[422082719,1778557840000,-150.0,0.00029601,2]
[422082721,1778557840000,-1058.25,0.000297,2]
[422082722,1778557840000,-1058.25,0.0003,30]
[422082723,1778557840000,-158.89,0.00030137,2]
[422082726,1778557840000,-1058.25,0.000303,30]
[422082724,1778557840000,-625.62,0.000302,7]
[422082725,1778557840000,-534.4,0.00030239,2]
[422082720,1778557840000,-159.12149317,0.00029637,2]
[422082728,1778557840000,-154.0,0.00030582,30]
[422082731,1778557840000,-642.0,0.00030586,30]
[422082714,1778557840000,-9185.05,0.00029426,60]
[422082729,1778557840000,-152.0,0.00030582,30]
[422082730,1778557840000,-338.0,0.00030586,30]
[422082732,1778557840000,-158.0,0.00030586,30]
[422082738,1778557840000,-2661.82,0.000306,14]
[422082733,1778557840000,-154.0,0.00030586,30]
[422082737,1778557840000,-158.0,0.00030586,30]
[422082735,1778557840000,-157.0,0.00030586,30]
[422082734,1778557840000,-180.0,0.00030586,30]
[422082741,1778557840000,-9185.05,0.0003073,60]
[422082742,1778557840000,-241.79,0.00030771,120]
[422082736,1778557840000,-151.0,0.00030586,30]
[422082739,1778557840000,-1058.25,0.000306,30]
[422082740,1778557840000,-152.99,0.00030669,2]
[422082727,1778557840000,-152.0,0.00030582,30]
[422082715,1778557840000,-179.0,0.00029545,120]
[422082684,1778557840000,-200.0,0.00027085,2]
[422082710,1778557840000,-1058.25,0.000291,2]
[422082711,1778557840000,-723.17,0.00029208,30]
[422082690,1778557840000,-1500.0,0.00027397,2]
[422082685,1778557840000,-7149.97,0.00027108,7]
[422082686,1778557840000,-7149.97,0.00027253,2]
[422082683,1778557840000,-313.6251751,0.00027021,2]
[422082687,1778557840000,-200.0,0.00027356,2]
[422082691,1778557840000,-158.89,0.00027397,2]
[422082689,1778557840000,-265.9822,0.00027397,30]
[422082694,1778557840000,-2661.82,0.000274,14]
[422082695,1778557840000,-5530.0,0.000274,5]
[422082696,1778557840000,-200.0,0.0002763,2]
[422082697,1778557840000,-625.62,0.000277,7]
[422082704,1778557840000,-150.0,0.00028192,2]
[422082692,1778557840000,-8744.99,0.00027397,10]
[422082699,1778557840000,-9185.05,0.00028121,30]
[422082702,1778557840000,-179.0,0.00028158,120]
[422082707,1778557840000,-152.99,0.00028624,2]
[422082718,1778557840000,-255.0,0.00029566,120]
[422082717,1778557840000,-179.0,0.00029566,120]
[422082705,1778557840000,-241.79,0.00028207,120]
[422082709,1778557840000,-500.69433434,0.00028849,17]
[422082716,1778557840000,-342.0,0.00029566,120]
[422082708,1778557840000,-1058.25,0.000288,2]
[422082701,1778557840000,-342.0,0.00028158,120]
[422082703,1778557840000,-255.0,0.00028158,120]
[422082698,1778557840000,-500.0,0.000278,7]
[422082700,1778557840000,-179.0,0.00028138,120]
[422082706,1778557840000,-534.4,0.00028267,2]
[422082776,1778557841000,-157.0,0.00032586,30]
[422082787,1778557841000,-625.62,0.000329,7]
[422082783,1778557841000,-151.0,0.00032877,7]
[422082782,1778557841000,-151.0,0.00032877,7]
[422082775,1778557841000,-180.0,0.00032586,30]
[422082771,1778557841000,-152.0,0.00032582,30]
[422082778,1778557841000,-2661.82,0.000326,14]
[422082774,1778557841000,-158.0,0.00032586,30]
[422082772,1778557841000,-338.0,0.00032586,30]
[422082773,1778557841000,-642.0,0.00032586,30]
[422082785,1778557841000,-167.88917837,0.00032877,60]
[422082777,1778557841000,-151.0,0.00032586,30]
[422082788,1778557841000,-1280.88388878,0.00033232,2]
[422082802,1778557841000,-152.0,0.00033232,2]
[422082786,1778557841000,-468.96,0.00032877,30]
[422082790,1778557841000,-152.0,0.00033232,2]
[422082791,1778557841000,-152.0,0.00033232,2]
[422082792,1778557841000,-152.0,0.00033232,2]
[422082794,1778557841000,-152.0,0.00033232,2]
[422082793,1778557841000,-152.0,0.00033232,2]
[422082801,1778557841000,-152.0,0.00033232,2]
[422082797,1778557841000,-152.0,0.00033232,2]
[422082798,1778557841000,-152.0,0.00033232,2]
[422082803,1778557841000,-152.0,0.00033232,2]
[422082804,1778557841000,-152.0,0.00033232,2]
[422082781,1778557841000,-151.0,0.00032877,7]
[422082789,1778557841000,-152.0,0.00033232,2]
[422082780,1778557841000,-158.89,0.00032877,2]
[422082758,1778557841000,-157.0,0.00031586,30]
[422082770,1778557841000,-154.0,0.00032582,30]
[422082743,1778557841000,-150.2941449,0.000308,2]
[422082744,1778557841000,-150.29414489,0.000308,2]
[422082746,1778557841000,-179.0,0.00031022,120]
[422082756,1778557841000,-158.0,0.00031586,30]
[422082745,1778557841000,-150.29414489,0.000308,2]
[422082757,1778557841000,-180.0,0.00031586,30]
[422082754,1778557841000,-338.0,0.00031586,30]
[422082750,1778557841000,-938.10380888,0.00031535,2]
[422082755,1778557841000,-642.0,0.00031586,30]
[422082748,1778557841000,-341.38972829,0.0003135,2]
[422082749,1778557841000,-1000.0,0.000315,7]
[422082747,1778557841000,-150.0,0.00031081,2]
[422082752,1778557841000,-154.0,0.00031582,30]
[422082751,1778557841000,-152.0,0.00031582,30]
[422082753,1778557841000,-152.0,0.00031582,30]
[422082796,1778557841000,-174.61919141,0.00033232,2]
[422082762,1778557841000,-9185.05,0.00032034,60]
[422082759,1778557841000,-151.0,0.00031586,30]
[422082761,1778557841000,-723.17,0.000316,60]
[422082760,1778557841000,-161.91522121,0.00031586,30]
[422082768,1778557841000,-179.0,0.00032573,120]
[422082769,1778557841000,-152.0,0.00032582,30]
[422082763,1778557841000,-534.4,0.0003221,5]
[422082765,1778557841000,-1767.19564437,0.00032523,2]
[422082767,1778557841000,-1927.75419799,0.00032523,2]
[422082766,1778557841000,-19107.03333196,0.00032523,2]
[422082764,1778557841000,-165.48,0.00032455,2]
[422082779,1778557841000,-150.0,0.00032636,2]
[422082799,1778557841000,-151.0,0.00033232,2]
[422082784,1778557841000,-219.362548,0.00032877,7]
[422082863,1778557841000,-162.74496523,0.00035586,30]
[422082833,1778557841000,-181.125,0.00034182,2]
[422082838,1778557841000,-808.953,0.00034182,2]
[422082830,1778557841000,-151.0,0.00033892,2]
[422082840,1778557841000,-179.0,0.00034201,120]
[422082835,1778557841000,-1006.275,0.00034182,2]
[422082843,1778557841000,-187.78006525,0.00034328,2]
[422082854,1778557841000,-2661.82,0.000348,14]
[422082853,1778557841000,-1500.0,0.00034795,2]
[422082842,1778557841000,-150.0,0.00034267,2]
[422082850,1778557841000,-180.0,0.00034586,30]
[422082848,1778557841000,-642.0,0.00034586,30]
[422082845,1778557841000,-154.0,0.00034582,30]
[422082855,1778557841000,-194.72792766,0.00034876,2]
[422082847,1778557841000,-338.0,0.00034586,30]
[422082846,1778557841000,-152.0,0.00034582,30]
[422082851,1778557841000,-151.0,0.00034586,30]
[422082852,1778557841000,-9185.05,0.00034643,90]
[422082844,1778557841000,-152.0,0.00034582,30]
[422082849,1778557841000,-158.0,0.00034586,30]
[422082856,1778557841000,-1500.0,0.000352,7]
[422082859,1778557841000,-154.0,0.00035582,30]
[422082857,1778557841000,-201.93286099,0.00035424,2]
[422082861,1778557841000,-338.0,0.00035586,30]
[422082858,1778557841000,-152.0,0.00035582,30]
[422082860,1778557841000,-152.0,0.00035582,30]
[422082800,1778557841000,-152.0,0.00033232,2]
[422082862,1778557841000,-642.0,0.00035586,30]
[422082841,1778557841000,-165.48,0.0003424,2]
[422082831,1778557841000,-151.0,0.00033947,2]
[422082795,1778557841000,-152.0,0.00033232,2]
[422082834,1778557841000,-931.438,0.00034182,2]
[422082836,1778557841000,-1273.818,0.00034182,2]
[422082805,1778557841000,-151.0,0.00033287,2]
[422082812,1778557841000,-151.0,0.00033562,2]
[422082807,1778557841000,-151.0,0.00033342,2]
[422082809,1778557841000,-159.12149317,0.00033447,2]
[422082813,1778557841000,-152.0,0.00033582,30]
[422082808,1778557841000,-151.0,0.00033397,2]
[422082815,1778557841000,-152.0,0.00033582,30]
[422082811,1778557841000,-151.0,0.00033507,2]
[422082810,1778557841000,-151.0,0.00033452,2]
[422082814,1778557841000,-154.0,0.00033582,30]
[422082817,1778557841000,-642.0,0.00033586,30]
[422082825,1778557841000,-150.056,0.00033761,36]
[422082828,1778557841000,-151.0,0.00033782,2]
[422082806,1778557841000,-9185.05,0.00033339,60]
[422082826,1778557841000,-472.15547665,0.0003378,2]
[422082816,1778557841000,-338.0,0.00033586,30]
[422082839,1778557841000,-534.4,0.00034182,7]
[422082832,1778557841000,-723.17,0.00033991,60]
[422082829,1778557841000,-151.0,0.00033837,2]
[422082823,1778557841000,-151.0,0.00033727,2]
[422082819,1778557841000,-180.0,0.00033586,30]
[422082837,1778557841000,-349.874,0.00034182,2]
[422082820,1778557841000,-151.0,0.00033586,30]
[422082827,1778557841000,-181.08010149,0.0003378,2]
[422082824,1778557841000,-1351.612,0.00033761,36]
[422082818,1778557841000,-158.0,0.00033586,30]
[422082822,1778557841000,-151.0,0.00033672,2]
[422082821,1778557841000,-151.0,0.00033617,2]
[422082905,1778557842000,-300.0,0.00037048,2]
[422082902,1778557842000,-300.0,0.00037048,2]
[422082904,1778557842000,-300.0,0.00037048,2]
[422082895,1778557842000,-155.20974893,0.00036959,14]
[422082898,1778557842000,-501.92255243,0.00036973,5]
[422082897,1778557842000,-769.95532185,0.00036962,2]
[422082899,1778557842000,-300.0,0.00037048,2]
[422082894,1778557842000,-151.0,0.00036959,14]
[422082893,1778557842000,-661.29,0.00036733,7]
[422082906,1778557842000,-300.0,0.00037048,2]
[422082896,1778557842000,-151.0,0.00036959,14]
[422082891,1778557842000,-2661.82,0.000366,14]
[422082909,1778557842000,-300.0,0.00037048,2]
[422082908,1778557842000,-300.0,0.00037048,2]
[422082913,1778557842000,-300.0,0.00037048,2]
[422082903,1778557842000,-300.0,0.00037048,2]
[422082914,1778557842000,-604.21547136,0.00037048,2]
[422082910,1778557842000,-492.49408754,0.00037048,2]
[422082912,1778557842000,-300.0,0.00037048,2]
[422082911,1778557842000,-300.0,0.00037048,2]
[422082915,1778557842000,-300.0,0.00037048,2]
[422082916,1778557842000,-300.0,0.00037048,2]
[422082924,1778557842000,-300.0,0.00037048,2]
[422082925,1778557842000,-301.67321972,0.00037048,2]
[422082901,1778557842000,-300.0,0.00037048,2]
[422082907,1778557842000,-300.0,0.00037048,2]
[422082900,1778557842000,-300.0,0.00037048,2]
[422082875,1778557842000,-150.0,0.00035981,2]
[422082886,1778557842000,-152.0,0.00036582,30]
[422082865,1778557842000,-151.0,0.00035586,30]
[422082864,1778557842000,-180.0,0.00035586,30]
[422082866,1778557842000,-625.62,0.000356,7]
[422082868,1778557842000,-500.0,0.00035616,7]
[422082867,1778557842000,-250.0,0.00035616,120]
[422082878,1778557842000,-250.0,0.00036164,120]
[422082874,1778557842000,-327.61627062,0.00035972,2]
[422082876,1778557842000,-165.48,0.00036026,2]
[422082871,1778557842000,-158.89,0.00035616,2]
[422082872,1778557842000,-179.0,0.00035912,120]
[422082873,1778557842000,-9185.05,0.00035948,90]
[422082869,1778557842000,-511.68054206,0.00035616,7]
[422082870,1778557842000,-500.0,0.00035616,7]
[422082877,1778557842000,-534.4,0.00036153,30]
[422082879,1778557842000,-644.0,0.00036165,5]
[422082882,1778557842000,-661.29,0.0003655,7]
[422082887,1778557842000,-338.0,0.00036586,30]
[422082890,1778557842000,-151.0,0.00036586,30]
[422082889,1778557842000,-180.0,0.00036586,30]
[422082883,1778557842000,-566.82,0.0003655,7]
[422082881,1778557842000,-723.17,0.00036382,90]
[422082888,1778557842000,-642.0,0.00036586,30]
[422082884,1778557842000,-152.0,0.00036582,30]
[422082885,1778557842000,-154.0,0.00036582,30]
[422082880,1778557842000,-635.0,0.00036165,5]
[422082892,1778557842000,-250.0,0.00036712,120]
[422082918,1778557842000,-527.54022817,0.00037048,2]
[422082917,1778557842000,-300.0,0.00037048,2]
[422082921,1778557842000,-893.04482543,0.00037048,2]
[422082951,1778557842000,-300.0,0.00037048,2]
[422082947,1778557842000,-1809.24690158,0.00037048,2]
[422082949,1778557842000,-300.0,0.00037048,2]
[422082954,1778557842000,-300.0,0.00037048,2]
[422082956,1778557842000,-451.72868137,0.00037048,2]
[422082957,1778557842000,-300.0,0.00037048,2]
[422082958,1778557842000,-300.0,0.00037048,2]
[422082961,1778557842000,-300.0,0.00037048,2]
[422082959,1778557842000,-300.0,0.00037048,2]
[422082960,1778557842000,-300.00000001,0.00037048,2]
[422082962,1778557842000,-483.88780455,0.00037048,2]
[422082964,1778557842000,-300.0,0.00037048,2]
[422082966,1778557842000,-300.0,0.00037048,2]
[422082965,1778557842000,-300.0,0.00037048,2]
[422082968,1778557842000,-1094.29459015,0.00037048,2]
[422082967,1778557842000,-300.0,0.00037048,2]
[422082974,1778557842000,-493.0002531,0.00037048,2]
[422082971,1778557842000,-300.0,0.00037048,2]
[422082969,1778557842000,-300.0,0.00037048,2]
[422082973,1778557842000,-300.0,0.00037048,2]
[422082970,1778557842000,-300.0,0.00037048,2]
[422082972,1778557842000,-473.37164944,0.00037048,2]
[422082976,1778557842000,-368.00914116,0.00037048,2]
[422082975,1778557842000,-300.0,0.00037048,2]
[422082919,1778557842000,-300.0,0.00037048,2]
[422082950,1778557842000,-310.77293504,0.00037048,2]
[422082948,1778557842000,-300.0,0.00037048,2]
[422082963,1778557842000,-309.70196001,0.00037048,2]
[422082953,1778557842000,-576.93890108,0.00037048,2]
[422082922,1778557842000,-590.52830036,0.00037048,2]
[422082952,1778557842000,-463.6616139,0.00037048,2]
[422082920,1778557842000,-1066.50381929,0.00037048,2]
[422082923,1778557842000,-725.78568352,0.00037048,2]
[422082930,1778557842000,-300.0,0.00037048,2]
[422082926,1778557842000,-416.06801092,0.00037048,2]
[422082928,1778557842000,-300.45062341,0.00037048,2]
[422082927,1778557842000,-300.0,0.00037048,2]
[422082929,1778557842000,-348.36222459,0.00037048,2]
[422082931,1778557842000,-300.0,0.00037048,2]
[422082933,1778557842000,-300.0,0.00037048,2]
[422082934,1778557842000,-853.86030012,0.00037048,2]
[422082937,1778557842000,-300.0,0.00037048,2]
[422082932,1778557842000,-300.0,0.00037048,2]
[422082955,1778557842000,-300.0,0.00037048,2]
[422082945,1778557842000,-300.0,0.00037048,2]
[422082943,1778557842000,-300.0,0.00037048,2]
[422082946,1778557842000,-864.10865205,0.00037048,2]
[422082938,1778557842000,-343.84381003,0.00037048,2]
[422082941,1778557842000,-300.0,0.00037048,2]
[422082942,1778557842000,-1146.71946024,0.00037048,2]
[422082935,1778557842000,-300.0,0.00037048,2]
[422082936,1778557842000,-1911.66155628,0.00037048,2]
[422082939,1778557842000,-526.68525168,0.00037048,2]
[422082940,1778557842000,-300.0,0.00037048,2]
[422082944,1778557842000,-309.46605895,0.00037048,2]
[422083026,1778557843000,-310.77293504,0.00037048,2]
[422083037,1778557843000,-483.88780455,0.00037048,2]
[422083028,1778557843000,-463.6616139,0.00037048,2]
[422083025,1778557843000,-541.85997567,0.00037048,2]
[422083021,1778557843000,-864.10865205,0.00037048,2]
[422083020,1778557843000,-399.71594427,0.00037048,2]
[422083022,1778557843000,-526.80250862,0.00037048,2]
[422083024,1778557843000,-300.0,0.00037048,2]
[422083027,1778557843000,-586.74068251,0.00037048,2]
[422083019,1778557843000,-309.46605895,0.00037048,2]
[422083038,1778557843000,-309.70196001,0.00037048,2]
[422083023,1778557843000,-1809.24690158,0.00037048,2]
[422083040,1778557843000,-300.0,0.00037048,2]
[422083042,1778557843000,-300.0,0.00037048,2]
[422083029,1778557843000,-300.0,0.00037048,2]
[422083032,1778557843000,-451.72868137,0.00037048,2]
[422083034,1778557843000,-300.0,0.00037048,2]
[422083030,1778557843000,-576.93890108,0.00037048,2]
[422083031,1778557843000,-373.86826724,0.00037048,2]
[422083039,1778557843000,-300.0,0.00037048,2]
[422083036,1778557843000,-300.0,0.00037048,2]
[422083035,1778557843000,-300.0,0.00037048,2]
[422083041,1778557843000,-300.0,0.00037048,2]
[422083047,1778557843000,-300.0,0.00037048,2]
[422083044,1778557843000,-300.0,0.00037048,2]
[422083018,1778557843000,-1146.71946024,0.00037048,2]
[422083033,1778557843000,-300.0,0.00037048,2]
[422083016,1778557843000,-372.85263818,0.00037048,2]
[422082978,1778557843000,-300.0,0.00037048,2]
[422083008,1778557843000,-300.0,0.00037048,2]
[422082977,1778557843000,-547.4540886,0.00037048,2]
[422082979,1778557843000,-300.0,0.00037048,2]
[422082983,1778557843000,-300.0,0.00037048,2]
[422082980,1778557843000,-492.49408754,0.00037048,2]
[422082981,1778557843000,-300.0,0.00037048,2]
[422082984,1778557843000,-604.21547136,0.00037048,2]
[422082985,1778557843000,-374.8514452,0.00037048,2]
[422082988,1778557843000,-527.54022817,0.00037048,2]
[422082989,1778557843000,-533.32114291,0.00037048,2]
[422082987,1778557843000,-300.0,0.00037048,2]
[422082991,1778557843000,-1066.50381929,0.00037048,2]
[422082992,1778557843000,-893.04482543,0.00037048,2]
[422082994,1778557843000,-300.0,0.00037048,2]
[422082993,1778557843000,-725.78568352,0.00037048,2]
[422082996,1778557843000,-300.0,0.00037048,2]
[422082995,1778557843000,-301.67321972,0.00037048,2]
[422082986,1778557843000,-393.07029376,0.00037048,2]
[422082997,1778557843000,-300.45062341,0.00037048,2]
[422083000,1778557843000,-300.0,0.00037048,2]
[422083010,1778557843000,-343.84381003,0.00037048,2]
[422082998,1778557843000,-300.0,0.00037048,2]
[422083002,1778557843000,-853.86030012,0.00037048,2]
[422082999,1778557843000,-315.23080397,0.00037048,2]
[422083014,1778557843000,-300.0,0.00037048,2]
[422083001,1778557843000,-300.0,0.00037048,2]
[422083012,1778557843000,-526.68525168,0.00037048,2]
[422083005,1778557843000,-1911.66155628,0.00037048,2]
[422083004,1778557843000,-300.0,0.00037048,2]
[422083045,1778557843000,-300.0,0.00037048,2]
[422083052,1778557843000,-492.49408754,0.00037048,2]
[422083049,1778557843000,-300.0,0.00037048,2]
[422083077,1778557843000,-309.46605895,0.00037048,2]
[422083082,1778557843000,-300.0,0.00037048,2]
[422083074,1778557843000,-366.89932392,0.00037048,2]
[422083084,1778557843000,-310.77293504,0.00037048,2]
[422083083,1778557843000,-300.0,0.00037048,2]
[422083088,1778557843000,-300.0,0.00037048,2]
[422083086,1778557843000,-300.0,0.00037048,2]
[422083090,1778557843000,-300.0,0.00037048,2]
[422083087,1778557843000,-576.93890108,0.00037048,2]
[422083089,1778557843000,-451.72868137,0.00037048,2]
[422083085,1778557843000,-463.6616139,0.00037048,2]
[422083091,1778557843000,-300.0,0.00037048,2]
[422083092,1778557843000,-300.0,0.00037048,2]
[422083094,1778557843000,-300.0,0.00037048,2]
[422083093,1778557843000,-300.0,0.00037048,2]
[422083095,1778557843000,-483.88780455,0.00037048,2]
[422083097,1778557843000,-300.0,0.00037048,2]
[422083096,1778557843000,-309.70196001,0.00037048,2]
[422083099,1778557843000,-300.0,0.00037048,2]
[422083098,1778557843000,-300.0,0.00037048,2]
[422083100,1778557843000,-300.0,0.00037048,2]
[422083101,1778557843000,-1094.29459015,0.00037048,2]
[422083102,1778557843000,-300.0,0.00037048,2]
[422083106,1778557843000,-300.0,0.00037048,2]
[422083104,1778557843000,-300.0,0.00037048,2]
[422083103,1778557843000,-300.0,0.00037048,2]
[422083043,1778557843000,-1094.29459015,0.00037048,2]
[422083073,1778557843000,-526.68525168,0.00037048,2]
[422083076,1778557843000,-1146.71946024,0.00037048,2]
[422083105,1778557843000,-300.0,0.00037048,2]
[422083080,1778557843000,-300.0,0.00037048,2]
[422083050,1778557843000,-300.0,0.00037048,2]
[422083048,1778557843000,-300.0,0.00037048,2]
[422083051,1778557843000,-465.34425429,0.00037048,2]
[422083053,1778557843000,-300.0,0.00037048,2]
[422083046,1778557843000,-300.0,0.00037048,2]
[422083054,1778557843000,-300.0,0.00037048,2]
[422083055,1778557843000,-300.0,0.00037048,2]
[422083078,1778557843000,-300.0,0.00037048,2]
[422083068,1778557843000,-853.86030012,0.00037048,2]
[422083067,1778557843000,-300.0,0.00037048,2]
[422083057,1778557843000,-300.0,0.00037048,2]
[422083056,1778557843000,-604.21547136,0.00037048,2]
[422083060,1778557843000,-893.04482543,0.00037048,2]
[422083069,1778557843000,-300.0,0.00037048,2]
[422083062,1778557843000,-300.0,0.00037048,2]
[422083058,1778557843000,-527.54022817,0.00037048,2]
[422083075,1778557843000,-372.85263818,0.00037048,2]
[422083071,1778557843000,-300.0,0.00037048,2]
[422083081,1778557843000,-1809.24690158,0.00037048,2]
[422083070,1778557843000,-1911.66155628,0.00037048,2]
[422083072,1778557843000,-343.84381003,0.00037048,2]
[422083079,1778557843000,-864.10865205,0.00037048,2]
[422083065,1778557843000,-300.45062341,0.00037048,2]
[422083064,1778557843000,-300.0,0.00037048,2]
[422083061,1778557843000,-725.78568352,0.00037048,2]
[422083063,1778557843000,-301.67321972,0.00037048,2]
[422083059,1778557843000,-1066.50381929,0.00037048,2]
[422083066,1778557843000,-300.0,0.00037048,2]
[422083156,1778557844000,-451.72868137,0.00037048,2]
[422083150,1778557844000,-310.77293504,0.00037048,2]
[422083153,1778557844000,-300.0,0.00037048,2]
[422083152,1778557844000,-463.6616139,0.00037048,2]
[422083148,1778557844000,-300.0,0.00037048,2]
[422083147,1778557844000,-300.0,0.00037048,2]
[422083151,1778557844000,-300.0,0.00037048,2]
[422083146,1778557844000,-1809.24690158,0.00037048,2]
[422083145,1778557844000,-300.0,0.00037048,2]
[422083143,1778557844000,-864.10865205,0.00037048,2]
[422083112,1778557844000,-300.0,0.00037048,2]
[422083158,1778557844000,-300.0,0.00037048,2]
[422083181,1778557844000,-159.9602041,0.00038,15]
[422083165,1778557844000,-300.0,0.00037048,2]
[422083166,1778557844000,-250.0,0.00037052,7]
[422083167,1778557844000,-170.54795026,0.000372,120]
[422083160,1778557844000,-300.0,0.00037048,2]
[422083164,1778557844000,-309.70196001,0.00037048,2]
[422083162,1778557844000,-300.0,0.00037048,2]
[422083159,1778557844000,-300.0,0.00037048,2]
[422083163,1778557844000,-483.88780455,0.00037048,2]
[422083168,1778557844000,-9185.05,0.00037252,90]
[422083161,1778557844000,-300.0,0.00037048,2]
[422083180,1778557844000,-2101.49007908,0.00037911,120]
[422083179,1778557844000,-150.0,0.000379,30]
[422083155,1778557844000,-300.0,0.00037048,2]
[422083157,1778557844000,-300.0,0.00037048,2]
[422083154,1778557844000,-576.93890108,0.00037048,2]
[422083118,1778557844000,-893.04482543,0.00037048,2]
[422083140,1778557844000,-1146.71946024,0.00037048,2]
[422083108,1778557844000,-300.0,0.00037048,2]
[422083113,1778557844000,-300.0,0.00037048,2]
[422083109,1778557844000,-492.49408754,0.00037048,2]
[422083107,1778557844000,-300.0,0.00037048,2]
[422083110,1778557844000,-300.0,0.00037048,2]
[422083111,1778557844000,-300.0,0.00037048,2]
[422083115,1778557844000,-300.0,0.00037048,2]
[422083122,1778557844000,-300.0,0.00037048,2]
[422083119,1778557844000,-725.78568352,0.00037048,2]
[422083114,1778557844000,-604.21547136,0.00037048,2]
[422083125,1778557844000,-300.0,0.00037048,2]
[422083116,1778557844000,-527.54022817,0.00037048,2]
[422083141,1778557844000,-309.46605895,0.00037048,2]
[422083117,1778557844000,-1066.50381929,0.00037048,2]
[422083124,1778557844000,-300.0,0.00037048,2]
[422083123,1778557844000,-300.45062341,0.00037048,2]
[422083121,1778557844000,-301.67321972,0.00037048,2]
[422083126,1778557844000,-853.86030012,0.00037048,2]
[422083128,1778557844000,-1911.66155628,0.00037048,2]
[422083129,1778557844000,-300.0,0.00037048,2]
[422083131,1778557844000,-343.84381003,0.00037048,2]
[422083135,1778557844000,-300.0,0.00037048,2]
[422083133,1778557844000,-526.68525168,0.00037048,2]
[422083170,1778557844000,-250.0,0.0003726,120]
[422083138,1778557844000,-300.0,0.00037048,2]
[422083142,1778557844000,-300.0,0.00037048,2]
[422083120,1778557844000,-300.0,0.00037048,2]
[422083171,1778557844000,-625.62,0.000373,7]
[422083127,1778557844000,-300.0,0.00037048,2]
[422083174,1778557844000,-150.0,0.0003778,2]
[422083207,1778557844000,-151.0,0.00038356,30]
[422083209,1778557844000,-308.95302127,0.00038356,2]